bitfinex/quotes_SOLUSD_20250721
["timestamp","ask_amount","ask_price","bid_price","bid_amount"]
[1753058161170,12.01686991,178.93,178.88,87.53]
[1753058161171,26.0,178.9,178.88,0.03]
[1753058161402,26.0,178.9,178.79,135.6741]
[1753058161403,11.53618436,178.89,178.79,135.6741]
[1753058161565,5.76809218,178.86,178.79,135.6741]
[1753058161890,5.76809218,178.81,178.79,135.6741]
[1753058162191,0.65,178.89,178.8,0.7]
[1753058162394,16.78468397,178.95,178.82,5.76809218]
[1753058162395,5.76809218,178.87,178.82,5.76809218]
[1753058162576,5.76809218,178.88,178.83,41.0]
[1753058162772,5.76809218,178.85,178.83,41.0]
[1753058162988,5.76809218,178.84,178.83,127.8]
[1753058163488,6.41809218,178.84,178.83,87.5]
[1753058164192,6.41809218,178.84,178.8,0.03]
[1753058164404,5.76809218,178.81,178.8,0.03]
[1753058165018,0.65,178.88,178.8,6.32280993]
[1753058165182,22.37377406,178.92,178.8,6.32280993]
[1753058165183,5.76809218,178.87,178.81,46.08809218]
[1753058165487,5.76809218,178.87,178.82,6.29221563]
[1753058165676,5.76809218,178.87,178.83,41.02]
[1753058165864,5.76809218,178.87,178.84,0.7]
[1753058166265,5.76809218,178.86,178.84,0.7]
[1753058166498,5.76809218,178.86,178.83,127.82]
[1753058166795,5.76809218,178.86,178.83,128.52]
[1753058167193,5.76809218,178.84,178.83,87.5]
[1753058167370,5.76809218,178.84,178.8,87.53]
[1753058167683,5.76809218,178.81,178.8,87.53]
[1753058167996,5.76809218,178.81,178.8,0.03]
[1753058168794,6.41809218,178.81,178.8,0.03]
[1753058169383,12.01062056,178.81,178.8,0.03]
[1753058171289,5.76809218,178.81,178.8,0.03]
[1753058172810,6.41809218,178.81,178.8,0.03]
[1753058173388,6.41809218,178.81,178.76,0.03]
[1753058173389,5.59284116,178.8,178.76,0.03]
[1753058173706,5.76809218,178.77,178.76,0.03]
[1753058174091,6.41809218,178.77,178.76,0.03]
[1753058174601,5.76809218,178.77,178.76,0.03]
[1753058175022,6.41809218,178.77,178.76,0.03]
[1753058175312,17.77996407,178.77,178.76,0.03]
[1753058175609,12.01187189,178.77,178.76,0.03]
[1753058176002,5.76809218,178.77,178.76,0.03]
[1753058176914,5.76809218,178.79,178.76,0.73]
[1753058177099,5.76809218,178.8,178.77,0.7]
[1753058177418,5.76809218,178.79,178.77,0.7]
[1753058178219,5.76809218,178.79,178.76,0.03]
[1753058178220,5.76809218,178.78,178.76,0.03]
[1753058178406,5.76809218,178.77,178.76,0.03]
[1753058179117,6.41809218,178.77,178.76,0.03]
[1753058179296,6.41809218,178.77,178.68,16.78468397]
[1753058179297,12.18618436,178.77,178.66,54.56447174]
[1753058179489,5.76809218,178.67,178.66,48.9673]
[1753058179884,0.65,178.73,178.66,48.9673]
[1753058180089,5.76809218,178.69,178.67,0.7]
[1753058180314,5.76809218,178.69,178.66,48.2673]
[1753058180315,5.76809218,178.69,178.68,0.7]
[1753058181099,5.76809218,178.72,178.68,6.29659726]
[1753058181289,0.65,178.76,178.69,0.7]
[1753058181609,5.76809218,178.72,178.69,0.7]
[1753058181914,5.76809218,178.71,178.69,0.7]
[1753058182219,5.76809218,178.72,178.7,0.7]
[1753058182513,5.76809218,178.77,178.71,5.76809218]
[1753058182715,5.76809218,178.77,178.72,47.04809218]
[1753058182888,5.76809218,178.74,178.72,40.58]
[1753058183086,5.76809218,178.73,178.72,40.58]
[1753058183311,5.76809218,178.73,178.7,0.7]
[1753058183492,5.76809218,178.71,178.69,40.56]
[1753058183698,5.76809218,178.7,178.69,40.56]
[1753058183908,5.76809218,178.7,178.67,0.7]
[1753058184103,5.76809218,178.68,178.67,0.7]
[1753058184326,5.76809218,178.69,178.67,0.7]
[1753058184699,5.76809218,178.69,178.67,6.2969105]
[1753058184899,5.76809218,178.69,178.68,0.7]
[1753058185129,5.76809218,178.69,178.67,0.7]
[1753058185904,5.76809218,178.69,178.66,141.54446948]
[1753058186115,5.76809218,178.69,178.68,0.7]
[1753058186794,5.76809218,178.69,178.66,141.54446948]
[1753058186991,5.76809218,178.69,178.67,6.29685056]
[1753058187215,5.76809218,178.7,178.68,0.7]
[1753058187404,0.65,178.74,178.68,0.7]
[1753058187606,0.65,178.74,178.66,136.6473]
[1753058187806,5.76809218,178.69,178.66,136.6473]
[1753058188004,5.76809218,178.69,178.66,135.9473]
[1753058188212,5.76809218,178.69,178.67,0.7]
[1753058188794,5.76809218,178.69,178.67,6.29682653]
[1753058188996,68.79086658,178.68,178.59,0.03]
[1753058189213,5.76809218,178.6,178.59,0.03]
[1753058189610,6.41809218,178.6,178.59,0.03]
[1753058190126,6.41809218,178.6,178.48,0.7]
[1753058190297,5.76809218,178.5,178.48,0.7]
[1753058190496,5.76809218,178.51,178.48,0.7]
[1753058190718,5.76809218,178.51,178.46,79.7808321]
[1753058190719,5.76809218,178.51,178.49,0.7]
[1753058191122,0.65,178.56,178.46,7.6176]
[1753058191123,5.76809218,178.5,178.46,7.6176]
[1753058191303,5.76809218,178.47,178.46,1.6051]
[1753058191821,5.76809218,178.53,178.46,1.6051]
[1753058192012,5.76809218,178.48,178.46,2.3051]
[1753058192213,5.76809218,178.53,178.46,2.3051]
[1753058192419,5.76809218,178.48,178.46,2.3051]
[1753058192804,5.60158876,178.53,178.46,1.6051]
[1753058192805,0.72,178.52,178.46,1.6051]
[1753058193010,5.76809218,178.48,178.46,1.6051]
[1753058193207,8.07617825,178.47,178.45,4.6875]
[1753058193414,0.72,178.51,178.45,4.6875]
[1753058193620,8.07617825,178.46,178.45,4.6875]
[1753058194822,8.79617825,178.46,178.45,4.6875]
[1753058195050,8.07617825,178.46,178.45,4.6875]
[1753058196108,8.79617825,178.46,178.45,4.6875]
[1753058196308,8.79617825,178.46,178.45,4.7175]
[1753058196525,0.72,178.46,178.45,4.7175]
[1753058196834,14.39967483,178.46,178.45,4.7175]
[1753058197232,8.79617825,178.46,178.45,4.7175]
[1753058197538,14.39967483,178.46,178.45,4.7175]
[1753058197917,22.47585308,178.46,178.45,4.7175]
[1753058198123,8.79617825,178.46,178.45,4.7175]
[1753058198324,22.47585308,178.46,178.45,4.7175]
[1753058198537,53.2692785,178.46,178.34,6.3326]
[1753058198836,8.07617825,178.35,178.34,6.3326]
[1753058199224,8.07617825,178.35,178.34,7.0326]
[1753058199938,8.07617825,178.35,178.34,12.63986701]
[1753058200131,13.68042503,178.44,178.34,12.63986701]
[1753058200440,0.72,178.43,178.34,11.93986701]
[1753058200737,0.72,178.46,178.37,26.0]
[1753058200934,8.07617825,178.44,178.39,8.07617825]
[1753058201235,8.07617825,178.48,178.42,8.07617825]
[1753058201427,0.72,178.54,178.44,9.67737825]
[1753058201610,8.07617825,178.47,178.45,6.1925]
[1753058201808,8.07617825,178.46,178.44,1.6012]
[1753058202012,8.07617825,178.45,178.43,40.88]
[1753058202213,0.72,178.49,178.44,0.7]
[1753058202446,8.07617825,178.47,178.45,0.7]
[1753058202614,0.72,178.52,178.45,0.7]
[1753058202940,8.07617825,178.48,178.45,6.30360985]
[1753058203116,0.72,178.52,178.43,48.95617825]
[1753058203117,8.07617825,178.47,178.43,46.48438209]
[1753058203313,8.07617825,178.44,178.43,40.88]
[1753058204631,8.07617825,178.45,178.43,41.58]
[1753058205038,8.07617825,178.48,178.44,0.7]
[1753058205340,8.07617825,178.49,178.44,8.77617825]
[1753058205510,8.07617825,178.5,178.45,0.7]
[1753058205714,8.07617825,178.5,178.46,0.7]
[1753058205915,8.07617825,178.47,178.43,47.18443871]
[1753058206113,8.07617825,178.47,178.44,0.7]
[1753058206744,8.07617825,178.48,178.44,0.7]
[1753058206944,8.07617825,178.48,178.45,5.60381059]
[1753058207143,8.07617825,178.48,178.45,6.30381059]
[1753058207349,8.07617825,178.48,178.45,0.7]
[1753058207555,0.72,178.5,178.45,0.7]
[1753058207749,8.07617825,178.48,178.45,0.7]
[1753058208342,8.07617825,178.49,178.46,0.7]
[1753058208731,8.07617825,178.48,178.44,5.60405995]
[1753058208934,8.07617825,178.48,178.45,6.30355246]
[1753058209348,8.07617825,178.48,178.46,0.7]
[1753058209552,0.72,178.54,178.46,0.7]
[1753058209844,0.72,178.57,178.47,48.99617825]
[1753058210079,0.72,178.57,178.42,26.56047528]
[1753058210080,8.07617825,178.48,178.44,6.30411868]
[1753058210353,8.07617825,178.56,178.45,40.92]
[1753058210646,0.72,178.55,178.47,8.07617825]
[1753058210822,8.07617825,178.54,178.49,8.07617825]
[1753058211019,8.07617825,178.55,178.51,5.60192706]
[1753058211219,8.07617825,178.52,178.5,6.0256]
[1753058211423,8.07617825,178.51,178.47,48.94473122]
[1753058211636,8.07617825,178.5,178.48,0.7]
[1753058212429,8.07617825,178.5,178.48,6.30274327]
[1753058212953,8.07617825,178.49,178.47,42.6418]
[1753058213152,5.7977706,178.48,178.47,42.6418]
[1753058213359,5.7977706,178.48,178.47,48.2449826]
[1753058213540,5.7977706,178.49,178.47,48.2449826]
[1753058213943,5.7977706,178.48,178.47,42.6418]
[1753058214973,6.5177706,178.48,178.42,5.60463514]
[1753058215258,5.7977706,178.44,178.43,40.96]
[1753058215554,5.7977706,178.45,178.43,41.66]
[1753058215935,5.7977706,178.45,178.43,40.96]
[1753058216828,5.7977706,178.44,178.43,40.96]
[1753058217736,5.7977706,178.45,178.43,40.96]
[1753058218058,5.7977706,178.44,178.43,40.96]
[1753058218856,0.72,178.48,178.43,40.96]
[1753058219050,5.7977706,178.45,178.43,40.96]
[1753058219357,5.7977706,178.45,178.42,5.63467868]
[1753058219559,5.7977706,178.44,178.43,0.03]
[1753058220262,0.06,178.47,178.43,6.5277706]
[1753058220563,0.06,178.47,178.44,47.3977706]
[1753058220865,0.06,178.47,178.46,11.40126718]
[1753058221063,0.06,178.47,178.45,0.72]
[1753058221264,5.7977706,178.46,178.43,40.93]
[1753058221468,5.8577706,178.47,178.44,0.72]
[1753058221654,5.8577706,178.47,178.45,0.72]
[1753058222235,5.7977706,178.46,178.43,40.93]
[1753058222441,0.06,178.47,178.44,0.72]
[1753058222644,0.06,178.47,178.46,5.7977706]
[1753058222952,0.06,178.47,178.46,40.9]
[1753058223161,0.06,178.47,178.46,47.22349658]
[1753058223338,0.06,178.47,178.46,53.02126718]
[1753058223536,0.06,178.47,178.46,47.22349658]
[1753058223859,0.06,178.47,178.46,53.02126718]
[1753058224242,0.06,178.47,178.44,5.60412463]
[1753058224474,0.06,178.47,178.45,40.9]
[1753058224774,0.06,178.47,178.46,5.7977706]
[1753058224973,0.06,178.47,178.46,12.12126718]
[1753058225655,0.06,178.47,178.46,6.32349658]
[1753058226048,0.06,178.47,178.46,0.72]
[1753058226252,0.06,178.47,178.46,41.58]
[1753058226453,0.06,178.47,178.46,47.18349658]
[1753058226745,0.06,178.47,178.46,41.58]
[1753058227341,0.06,178.47,178.46,47.18349658]
[1753058228970,0.06,178.47,178.46,52.98126718]
[1753058230141,0.06,178.47,178.46,69.76595115]
[1753058230343,5.7977706,178.58,178.5,42.78468397]
[1753058230561,5.7977706,178.58,178.49,26.0]
[1753058230562,5.7977706,178.59,178.53,5.7977706]
[1753058230769,5.7977706,178.61,178.55,5.7977706]
[1753058230957,5.7977706,178.61,178.56,46.5977706]
[1753058231147,5.7977706,178.62,178.57,0.72]
[1753058231340,5.8577706,178.63,178.58,47.3177706]
[1753058231542,5.8577706,178.63,178.59,0.72]
[1753058231894,0.06,178.63,178.6,41.52]
[1753058232178,0.06,178.63,178.61,5.59879066]
[1753058232346,0.06,178.63,178.62,40.8]
[1753058232675,0.06,178.63,178.62,41.52]
[1753058232894,0.06,178.63,178.62,47.3177706]
[1753058233578,0.06,178.63,178.62,64.10245457]
[1753058233881,0.06,178.63,178.62,66.17020229]
[1753058234377,0.06,178.63,178.62,71.7686795]
[1753058235275,0.06,178.63,178.62,159.2686795]
[1753058235448,1e-08,178.63,178.62,158.70883178]
[1753058235772,0.06,178.67,178.66,49.12078397]
[1753058235946,6.4577706,178.76,178.66,96.25827694]
[1753058236272,5.7977706,178.75,178.7,5.7977706]
[1753058236475,0.66,178.76,178.7,5.7977706]
[1753058236476,0.66,178.76,178.71,40.78]
[1753058236772,5.7977706,178.76,178.72,0.72]
[1753058236974,5.7977706,178.75,178.73,40.78]
[1753058238561,0.06,178.8,178.74,0.72]
[1753058238876,5.8577706,178.8,178.75,46.5577706]
[1753058239181,5.7977706,178.78,178.73,2.81378425]
[1753058239358,5.7977706,178.78,178.72,7.12382162]
[1753058239359,5.7977706,178.75,178.74,40.8]
[1753058239556,5.7977706,178.79,178.74,41.52]
[1753058239753,5.7977706,178.77,178.72,1.5285]
[1753058239965,5.7977706,178.77,178.73,41.54]
[1753058240170,5.7977706,178.77,178.73,40.82]
[1753058240347,5.7977706,178.76,178.73,40.82]
[1753058240547,5.7977706,178.78,178.73,40.82]
[1753058240778,5.7977706,178.78,178.74,0.72]
[1753058240960,0.06,178.8,178.75,16.78468397]
[1753058241162,0.06,178.8,178.79,31.7977706]
[1753058241471,0.06,178.84,178.83,44.35818397]
[1753058241651,0.06,178.84,178.83,179.03514486]
[1753058241853,0.06,178.84,178.83,45.07818397]
[1753058242161,5.8577706,178.84,178.83,1.5735]
[1753058242363,0.06,178.84,178.83,42.4135]
[1753058242886,6.5177706,178.84,178.83,40.86]
[1753058243082,6.5177706,178.84,178.8,40.88]
[1753058243270,8.71646621,178.81,178.78,26.0]
[1753058243476,0.66,178.83,178.79,40.88]
[1753058243876,0.06,178.84,178.79,40.88]
[1753058243877,0.66,178.82,178.79,40.88]
[1753058244264,0.06,178.84,178.79,40.88]
[1753058244464,8.71646621,178.8,178.78,40.86]
[1753058244785,8.71646621,178.79,178.78,40.86]
[1753058245485,0.66,178.83,178.78,40.86]
[1753058245664,8.71646621,178.8,178.78,40.86]
[1753058245859,8.71646621,178.8,178.74,26.0]
[1753058245860,8.71646621,178.79,178.74,26.0]
[1753058246084,5.5920293,178.83,178.76,40.86]
[1753058246384,0.66,178.82,178.76,40.86]
[1753058246587,5.59252838,178.81,178.76,40.86]
[1753058246771,0.66,178.8,178.76,40.86]
[1753058247259,8.71646621,178.78,178.76,40.86]
[1753058247460,8.71646621,178.77,178.76,40.86]
[1753058248288,9.37646621,178.77,178.74,40.82]
[1753058248599,8.71646621,178.75,178.74,40.82]
[1753058248973,8.71646621,178.75,178.72,1.5]
[1753058248974,9.37646621,178.75,178.72,1.5]
[1753058249175,8.71646621,178.74,178.72,1.5]
[1753058249383,13.98180326,178.81,178.72,2.22]
[1753058249384,8.71646621,178.75,178.72,2.22]
[1753058249689,40.03925059,178.84,178.73,0.72]
[1753058249875,8.71646621,178.78,178.74,40.82]
[1753058250079,8.71646621,178.79,178.75,0.72]
[1753058250291,8.71646621,178.81,178.76,9.43646621]
[1753058250586,8.71646621,178.82,178.77,50.25646621]
[1753058250794,8.71646621,178.79,178.77,40.82]
[1753058251009,9.36646621,178.78,178.77,40.82]
[1753058251164,9.36646621,178.78,178.72,27.5]
[1753058251365,8.71646621,178.75,178.73,40.86]
[1753058251590,8.71646621,178.77,178.74,0.65]
[1753058252010,8.71646621,178.79,178.75,0.65]
[1753058252165,8.71646621,178.78,178.75,41.51]
[1753058252361,0.65,178.81,178.75,40.86]
[1753058252608,8.71646621,178.81,178.76,9.36646621]
[1753058252902,8.71646621,178.82,178.77,14.96017933]
[1753058253067,8.71646621,178.82,178.78,41.51]
[1753058253265,8.71646621,178.83,178.79,0.65]
[1753058253461,8.77646621,178.84,178.8,0.65]
[1753058253690,0.06,178.83,178.81,41.49]
[1753058254072,0.06,178.83,178.81,50.20646621]
[1753058254269,0.06,178.83,178.82,15.79376621]
[1753058254600,0.06,178.83,178.82,17.87838777]
[1753058254778,0.06,178.84,178.82,66.25528737]
[1753058254975,0.06,178.84,178.83,26.15115018]
[1753058256070,0.06,178.9,178.87,8.71646621]
[1753058256269,0.06,178.9,178.88,40.88]
[1753058256465,0.06,178.9,178.88,50.24646621]
[1753058256666,0.06,178.9,178.89,14.9564936]
[1753058256905,0.06,178.9,178.89,41.53]
[1753058257075,0.06,178.9,178.89,47.12002739]
[1753058257470,0.06,178.9,178.89,40.88]
[1753058257680,9.42646621,178.9,178.89,40.88]
[1753058257882,9.42646621,178.9,178.82,13.54471985]
[1753058258195,9.42646621,178.9,178.77,87.5]
[1753058258196,8.71646621,178.83,178.77,8.8891]
[1753058258498,8.71646621,178.82,178.78,40.88]
[1753058258693,0.65,178.85,178.79,5.59315397]
[1753058258904,8.71646621,178.83,178.79,6.24315397]
[1753058259089,8.71646621,178.83,178.8,0.65]
[1753058259292,0.65,178.87,178.81,40.86]
[1753058259469,0.06,178.9,178.81,40.86]
[1753058259470,0.71,178.9,178.81,50.22646621]
[1753058259674,8.71646621,178.86,178.81,41.51]
[1753058259869,8.71646621,178.86,178.81,40.86]
[1753058260104,8.71646621,178.86,178.82,0.65]
[1753058260599,0.06,178.9,178.85,8.71646621]
[1753058260775,0.06,178.9,178.86,47.0807943]
[1753058260980,0.06,178.9,178.86,55.79726051]
[1753058261173,0.06,178.9,178.87,0.65]
[1753058261989,0.06,178.9,178.89,8.71646621]
[1753058262176,0.06,178.9,178.89,40.84]
[1753058265292,0.06,178.9,178.89,46.43002739]
[1753058265509,0.06,178.9,178.89,52.849721]
[1753058265805,0.06,178.9,178.89,40.78]
[1753058266679,0.06,178.9,178.89,47.19969361]
[1753058266891,0.06,178.9,178.89,64.54338031]
[1753058267090,0.06,178.9,178.89,70.1334077]
[1753058270385,0.1,178.93,178.92,26.0]
[1753058270611,0.1,178.93,178.92,73.04860261]
[1753058270795,0.1,178.93,178.92,73.69860261]
[1753058270999,0.1,178.93,178.92,90.48328658]
[1753058271205,5.86969361,179.02,178.96,26.0]
[1753058271500,0.1,179.02,178.97,46.48969361]
[1753058271709,0.1,179.02,178.97,47.13969361]
[1753058272213,0.1,179.02,179.0,26.0]
[1753058272408,0.1,179.02,179.01,47.10832161]
[1753058272618,0.1,179.02,179.01,47.75832161]
[1753058273288,0.1,179.02,179.01,53.3446017]
[1753058273488,0.1,179.02,179.0,26.0]
[1753058273489,5.86969361,179.02,178.97,6.23745797]
[1753058273792,5.76969361,178.99,178.92,22.91258397]
[1753058273994,5.76969361,178.94,178.9,5.58971492]
[1753058274216,5.76969361,178.94,178.91,40.78]
[1753058274395,6.41969361,178.94,178.91,40.78]
[1753058274715,0.65,178.94,178.91,40.78]
[1753058275012,5.76969361,178.95,178.91,40.78]
[1753058275013,0.1,179.02,178.93,5.76969361]
[1753058275315,5.76969361,178.97,178.94,40.8]
[1753058275890,5.76969361,178.97,178.94,46.38841114]
[1753058276117,5.76969361,178.97,178.94,40.8]
[1753058276915,5.76969361,178.98,178.94,47.03846238]
[1753058277120,0.75,179.02,178.96,5.76969361]
[1753058277330,5.76969361,179.01,178.97,40.76]
[1753058277501,5.76969361,179.0,178.97,40.76]
[1753058277805,5.76969361,178.99,178.97,40.76]
[1753058278007,5.76969361,178.98,178.95,0.65]
[1753058278219,5.76969361,178.98,178.96,40.74]
[1753058278417,0.1,179.02,178.97,5.76969361]
[1753058278608,5.86969361,179.02,178.97,0.65]
[1753058278809,5.76969361,179.01,178.97,0.65]
[1753058279395,5.86969361,179.02,178.97,0.65]
[1753058279593,0.1,179.02,178.97,0.65]
[1753058279899,5.76969361,179.01,178.97,6.23749242]
[1753058280822,0.75,179.02,178.96,40.74]
[1753058281007,5.76969361,179.0,178.96,46.32779044]
[1753058281408,5.76969361,179.0,178.96,47.00779044]
[1753058281614,0.1,179.02,178.96,47.00779044]
[1753058281930,5.76969361,179.0,178.96,46.32779044]
[1753058282107,0.1,179.02,178.98,5.76969361]
[1753058282307,0.1,179.02,178.99,46.52969361]
[1753058282622,0.1,179.02,178.99,40.76]
[1753058282925,5.76969361,179.0,178.98,40.76]
[1753058283130,6.43969361,178.99,178.96,40.76]
[1753058283428,5.6860659,179.02,178.95,40.76]
[1753058283429,0.77,179.02,178.95,40.76]
[1753058283628,5.76969361,179.0,178.96,6.26767363]
[1753058284014,5.76969361,178.99,178.95,5.58813489]
[1753058284331,5.76969361,178.99,178.97,40.76]
[1753058284505,5.76969361,178.98,178.97,40.76]
[1753058285153,12.20938722,178.98,178.92,40.76]
[1753058285319,0.67,178.98,178.92,40.76]
[1753058285631,5.76969361,178.94,178.9,5.58953215]
[1753058285810,5.76969361,178.93,178.91,40.76]
[1753058286134,5.76969361,178.94,178.91,40.76]
[1753058287024,5.76969361,178.93,178.91,40.76]
[1753058287658,0.67,178.98,178.91,46.52969361]
[1753058287928,5.76969361,178.96,178.92,0.68]
[1753058288105,5.76969361,178.93,178.91,40.76]
[1753058288311,0.67,178.95,178.91,40.76]
[1753058288312,5.76969361,178.92,178.91,40.76]
[1753058289836,6.43969361,178.92,178.85,6.9971]
[1753058290145,0.67,178.91,178.82,0.68]
[1753058290332,5.76969361,178.85,178.84,26.0]
[1753058290525,5.76969361,178.86,178.84,26.0]
[1753058291039,5.76969361,178.86,178.83,40.74]
[1753058291343,5.76969361,178.86,178.83,47.01168163]
[1753058291519,5.76969361,178.86,178.83,41.42]
[1753058291721,5.76969361,178.86,178.83,40.74]
[1753058292039,5.76969361,178.85,178.83,40.74]
[1753058292524,5.76969361,178.86,178.83,46.33183485]
[1753058292725,5.76969361,178.87,178.83,47.01183485]
[1753058293229,5.76969361,178.9,178.85,5.76969361]
[1753058293440,5.76969361,178.89,178.86,41.38]
[1753058293628,5.76969361,178.88,178.86,40.7]
[1753058293943,6.43969361,178.87,178.86,40.7]
[1753058294144,6.43969361,178.87,178.84,40.72]
[1753058294335,5.76969361,178.85,178.84,40.72]
[1753058294643,5.76969361,178.86,178.84,40.72]
[1753058295646,5.76969361,178.88,178.85,0.68]
[1753058295817,5.76969361,178.86,178.84,40.72]
[1753058296140,5.76969361,178.85,178.84,40.72]
[1753058296549,6.43969361,178.85,178.81,37.99649424]
[1753058296734,5.76969361,178.84,178.82,40.7]
[1753058298043,5.76969361,178.83,178.82,40.7]
[1753058298836,5.76969361,178.84,178.82,40.7]
[1753058299157,5.76969361,178.89,178.83,6.44969361]
[1753058299330,5.76969361,178.9,178.86,26.0]
[1753058299653,5.76969361,178.89,178.87,40.68]
[1753058299857,6.43969361,178.88,178.87,40.68]
[1753058300028,6.43969361,178.88,178.83,40.68]
[1753058300223,5.76969361,178.84,178.83,40.68]
[1753058300439,6.43969361,178.84,178.81,66.7]
[1753058300649,5.76969361,178.84,178.81,66.7]
[1753058300854,5.76969361,178.84,178.81,67.38]
[1753058301324,5.76969361,178.83,178.81,66.7]
[1753058301752,5.76969361,178.82,178.81,66.7]
[1753058301959,5.76969361,178.82,178.81,40.7]
[1753058303250,5.76969361,178.82,178.8,0.03]
[1753058303251,6.43969361,178.82,178.8,0.03]
[1753058303469,6.43969361,178.81,178.8,0.03]
[1753058304346,5.76969361,178.81,178.8,0.03]
[1753058304552,6.43969361,178.81,178.8,0.03]
[1753058305365,12.03222199,178.81,178.8,0.03]
[1753058305731,0.67,178.81,178.8,0.03]
[1753058305936,6.43969361,178.81,178.8,0.03]
[1753058306230,5.76969361,178.86,178.8,0.03]
[1753058306543,5.76969361,178.83,178.8,0.71]
[1753058306862,5.76969361,178.84,178.81,40.62]
[1753058307021,5.76969361,178.84,178.81,41.3]
[1753058307226,5.76969361,178.84,178.81,46.21250991]
[1753058307728,5.76969361,178.83,178.81,40.62]
[1753058308245,5.76969361,178.83,178.81,46.21238331]
[1753058308444,5.76969361,178.84,178.82,0.68]
[1753058308761,5.76969361,178.86,178.83,0.68]
[1753058309056,5.76969361,178.87,178.84,41.3]
[1753058309227,5.76969361,178.86,178.84,40.62]
[1753058309427,5.76969361,178.85,178.84,40.62]
[1753058311043,6.44969361,178.85,178.82,40.6]
[1753058311243,5.76969361,178.83,178.8,0.03]
[1753058311450,5.76969361,178.81,178.8,40.61]
[1753058312956,5.76969361,178.81,178.8,0.03]
[1753058313136,6.44969361,178.81,178.8,0.03]
[1753058314928,12.04222199,178.81,178.8,0.03]
[1753058315189,6.44969361,178.81,178.8,0.03]
[1753058315561,12.04222199,178.81,178.8,0.03]
[1753058316226,6.44969361,178.81,178.8,0.03]
[1753058316633,12.04222199,178.81,178.8,0.03]
[1753058317262,12.04222199,178.81,178.76,87.53]
[1753058317263,16.78468397,178.8,178.76,0.03]
[1753058317429,54.32407119,178.77,178.76,0.03]
[1753058317640,16.78468397,178.76,178.73,0.03]
[1753058317833,5.76969361,178.74,178.73,0.03]
[1753058318331,6.44969361,178.74,178.73,0.03]
[1753058318528,5.76969361,178.74,178.73,0.03]
[1753058318962,6.44969361,178.74,178.73,0.03]
[1753058319870,12.04441219,178.74,178.73,0.03]
[1753058320258,6.44969361,178.74,178.73,0.03]
[1753058320959,5.76969361,178.74,178.73,0.03]
[1753058321465,5.76969361,178.82,178.75,1.5484]
[1753058321675,0.68,178.86,178.77,5.76969361]
[1753058321840,5.76969361,178.83,178.78,5.76969361]
[1753058322041,5.76969361,178.81,178.78,0.65]
[1753058322258,0.68,178.83,178.76,40.54]
[1753058322484,0.68,178.86,178.78,6.41969361]
[1753058322655,5.76969361,178.84,178.77,0.55937797]
[1753058322855,0.68,178.86,178.77,0.55937797]
[1753058322856,5.76969361,178.83,178.77,0.65]
[1753058323172,5.76969361,178.81,178.76,40.54]
[1753058323474,5.76969361,178.8,178.76,46.13392882]
[1753058323653,0.68,178.84,178.76,46.13392882]
[1753058323855,0.68,178.84,178.77,6.41969361]
[1753058324061,5.76969361,178.82,178.77,6.41969361]
[1753058324370,0.68,178.84,178.77,0.65]
[1753058324569,5.76969361,178.81,178.77,0.65]
[1753058324749,5.76969361,178.83,178.78,0.65]
[1753058325368,5.76969361,178.82,178.76,46.78392882]
[1753058325558,5.76969361,178.81,178.76,52.55362243]
[1753058325750,31.59105434,178.86,178.77,0.65]
[1753058325953,5.76969361,178.82,178.77,0.65]
[1753058326141,5.76969361,178.82,178.78,0.65]
[1753058326358,5.76969361,178.83,178.77,5.76969361]
[1753058326564,5.76969361,178.83,178.79,0.65]